lending/lending_fUSD_20250409
["ID","MTS","AMOUNT","RATE_DAILY","PERIOD"]
[357606705,1744235456063,-150.0,0.00027424,2]
[357606706,1744235456073,-500.0,0.00027424,2]
[357606707,1744235456081,-150.0,0.00027424,2]
[357606708,1744235456090,-500.0,0.00027424,2]
[357606709,1744235456099,-150.0,0.00027424,2]
[357606710,1744235456108,-150.0,0.00027424,2]
[357606711,1744235456117,-150.0,0.00027424,2]
[357606712,1744235456126,-500.0,0.00027424,2]
[357606713,1744235456135,-500.0,0.00027424,2]
[357606714,1744235456144,-4648.0,0.00027424,2]
[357606715,1744235456153,-500.0,0.00027424,2]
[357606716,1744235456162,-500.0,0.00027424,2]
[357606717,1744235456171,-500.0,0.00027424,2]
[357606718,1744235456181,-500.0,0.00027424,2]
[357606719,1744235456189,-500.0,0.00027424,2]
[357606720,1744235456198,-165.50234576,0.00027424,2]
[357606721,1744235456207,-500.0,0.00027424,2]
[357606722,1744235456217,-500.0,0.00027424,2]
[357606723,1744235456226,-899.77812698,0.00027424,2]
[357606724,1744235456235,-544.0,0.00027424,2]
[357606725,1744235456244,-500.0,0.00027424,2]
[357606726,1744235456253,-777.92058837,0.00027424,2]
[357606727,1744235456262,-500.0,0.00027424,2]
[357606728,1744235456271,-514.36663051,0.00027424,2]
[357606729,1744235456280,-275.04072212,0.00027424,2]
[357606730,1744235456290,-500.0,0.00027424,2]
[357606731,1744235456299,-150.0,0.00027452,2]
[357606732,1744235456309,-500.0,0.00027452,2]
[357606733,1744235456317,-150.0,0.00027452,2]
[357606734,1744235456327,-500.0,0.00027452,2]
[357606735,1744235456336,-150.0,0.00027452,2]
[357606736,1744235456345,-500.0,0.00027452,2]
[357606737,1744235456355,-150.0,0.00027452,2]
[357606738,1744235456364,-196.85815236,0.00027452,2]
[357606739,1744235456373,-192.67383401,0.00027452,2]
[357606740,1744235456383,-500.0,0.00027452,2]
[357606741,1744235456392,-997.83516125,0.00027452,2]
[357606742,1744235456401,-4648.0,0.00027452,2]
[357606743,1744235456410,-500.0,0.00027452,2]
[357606744,1744235456419,-995.24153773,0.00027452,2]
[357606745,1744235456433,-500.0,0.00027452,2]
[357606746,1744235456442,-500.0,0.00027452,2]
[357606747,1744235456451,-500.0,0.00027452,2]
[357606748,1744235456461,-500.0,0.00027452,2]
[357606749,1744235456471,-500.0,0.00027452,2]
[357606750,1744235456481,-544.0,0.00027452,2]
[357606751,1744235456490,-500.0,0.00027452,2]
[357606752,1744235456501,-643.53862959,0.00027452,2]
[357606753,1744235456511,-500.0,0.00027452,2]
[357606754,1744235456521,-150.0,0.00027479,2]
[357606755,1744235456530,-500.0,0.00027479,2]
[357606756,1744235456539,-150.0,0.00027479,2]
[357606757,1744235456548,-500.0,0.00027479,2]
[357606758,1744235456558,-500.0,0.00027479,2]
[357606759,1744235456567,-249.95197694,0.00027479,2]
[357606760,1744235456577,-500.0,0.00027479,2]
[357606761,1744235456586,-4648.0,0.00027479,2]
[357606762,1744235456597,-500.0,0.00027479,2]
[357606763,1744235456607,-500.0,0.00027479,2]
[357606764,1744235456616,-776.64905278,0.00027479,2]
[357606765,1744235456626,-500.0,0.00027479,2]
[357606766,1744235456635,-500.0,0.00027479,2]
[357606767,1744235456645,-500.0,0.00027479,2]
[357606768,1744235456654,-544.0,0.00027479,2]
[357606769,1744235456663,-500.0,0.00027479,2]
[357606770,1744235456672,-613.56627816,0.00027479,2]
[357606771,1744235456681,-171.0165566,0.00027507,2]
[357606772,1744235456690,-500.0,0.00027507,2]
[357606773,1744235456700,-249.46611034,0.00027507,2]
[357606774,1744235456710,-500.0,0.00027507,2]
[357606775,1744235456719,-500.0,0.00027507,2]
[357606776,1744235456728,-500.0,0.00027507,2]
[357606777,1744235456737,-4648.0,0.00027507,2]
[357606778,1744235456747,-500.0,0.00027507,2]
[357606779,1744235456756,-500.0,0.00027507,2]
[357606780,1744235456765,-500.0,0.00027507,2]
[357606781,1744235456774,-500.0,0.00027507,2]
[357606782,1744235456783,-500.0,0.00027507,2]
[357606783,1744235456793,-544.0,0.00027507,2]
[357606784,1744235456802,-500.0,0.00027507,2]
[357606785,1744235456812,-500.0,0.00027534,2]
[357606786,1744235456821,-500.0,0.00027534,2]
[357606787,1744235456830,-500.0,0.00027534,2]
[357606788,1744235456839,-500.0,0.00027534,2]
[357606789,1744235456849,-4648.0,0.00027534,2]
[357606790,1744235456858,-500.0,0.00027534,2]
[357606791,1744235456867,-500.0,0.00027534,2]
[357606792,1744235456877,-500.0,0.00027534,2]
[357606793,1744235456889,-500.0,0.00027534,2]
[357606794,1744235456898,-500.0,0.00027534,2]
[357606795,1744235456908,-544.0,0.00027534,2]
[357606796,1744235456917,-500.0,0.00027534,2]
[357606797,1744235456927,-342.06,0.00027539,2]
[357606798,1744235456936,-500.0,0.00027561,2]
[357606799,1744235456947,-500.0,0.00027561,2]
[357606800,1744235456956,-730.61173295,0.00027561,2]
[357606801,1744235456967,-517.6933534,0.00027561,2]
[357606802,1744235456977,-4648.0,0.00027561,2]
[357606803,1744235456989,-500.0,0.00027561,2]
[357606804,1744235456999,-500.0,0.00027561,2]
[357606805,1744235457009,-500.0,0.00027561,2]
[357606806,1744235457019,-500.0,0.00027561,2]
[357606807,1744235457028,-500.0,0.00027561,2]
[357606808,1744235457038,-544.0,0.00027561,2]
[357606809,1744235457048,-500.0,0.00027561,2]
[357606810,1744235457057,-500.0,0.00027589,2]
[357606811,1744235457068,-507.49509777,0.00027589,2]
[357606812,1744235457077,-4648.0,0.00027589,2]
[357606813,1744235457088,-500.0,0.00027589,2]
[357606814,1744235457098,-500.0,0.00027589,2]
[357606815,1744235457107,-500.0,0.00027589,2]
[357606816,1744235457116,-500.0,0.00027589,2]
[357606817,1744235457126,-537.14114017,0.00027589,2]
[357606818,1744235457136,-544.0,0.00027589,2]
[357606819,1744235457145,-916.76187876,0.00027589,2]
[357606820,1744235457155,-500.0,0.00027616,2]
[357606821,1744235457164,-4648.0,0.00027616,2]
[357606822,1744235457174,-500.0,0.00027616,2]
[357606823,1744235457184,-500.0,0.00027616,2]
[357606824,1744235457193,-500.0,0.00027616,2]
[357606825,1744235457203,-656.81077614,0.00027616,2]
[357606826,1744235457213,-544.0,0.00027616,2]
[357606827,1744235457223,-500.0,0.00027644,2]
[357606828,1744235457233,-4648.0,0.00027644,2]
[357606829,1744235457243,-500.0,0.00027644,2]
[357606830,1744235457253,-500.0,0.00027644,2]
[357606831,1744235457263,-500.0,0.00027644,2]
[357606832,1744235457273,-544.0,0.00027644,2]
[357606833,1744235457283,-150.0,0.0002767,2]
[357606834,1744235457293,-500.0,0.00027671,2]
[357606835,1744235457303,-4648.0,0.00027671,2]
[357606836,1744235457313,-500.0,0.00027671,2]
[357606837,1744235457323,-500.0,0.00027671,2]
[357606838,1744235457333,-995.59680159,0.00027671,2]
[357606839,1744235457344,-544.0,0.00027671,2]
[357606840,1744235457355,-500.0,0.00027698,2]
[357606841,1744235457365,-4648.0,0.00027698,2]
[357606842,1744235457375,-500.0,0.00027698,2]
[357606843,1744235457385,-500.0,0.00027698,2]
[357606844,1744235457395,-544.0,0.00027698,2]
[357606845,1744235457405,-500.0,0.00027726,2]
[357606846,1744235457416,-4648.0,0.00027726,2]
[357606847,1744235457428,-500.0,0.00027726,2]
[357606848,1744235457439,-500.0,0.00027726,2]
[357606849,1744235457449,-544.0,0.00027726,2]
[357606850,1744235457458,-500.0,0.00027753,2]
[357606851,1744235457468,-4648.0,0.00027753,2]
[357606852,1744235457479,-500.0,0.00027753,2]
[357606853,1744235457488,-500.0,0.00027753,2]
[357606854,1744235457498,-544.0,0.00027753,2]
[357606855,1744235457509,-500.0,0.00027781,2]
[357606856,1744235457519,-4648.0,0.00027781,2]
[357606857,1744235457529,-500.0,0.00027781,2]
[357606858,1744235457539,-839.0,0.00027781,2]
[357606859,1744235457548,-544.0,0.00027781,2]
[357606860,1744235457558,-500.0,0.00027808,2]
[357606861,1744235457567,-4648.0,0.00027808,2]
[357606862,1744235457577,-500.0,0.00027808,2]
[357606863,1744235457587,-544.0,0.00027808,2]
[357606864,1744235457596,-944.0,0.00027835,2]
[357606865,1744235457606,-4648.0,0.00027835,2]
[357606866,1744235457616,-500.0,0.00027835,2]
[357606867,1744235457626,-544.0,0.00027835,2]
[357606868,1744235457635,-1665.37,0.00027859,2]
[357606869,1744235457645,-4648.0,0.00027863,2]
[357606870,1744235457655,-743.0,0.00027863,2]
[357606871,1744235457664,-544.0,0.00027863,2]
[357606872,1744235457675,-4648.0,0.0002789,2]
[357606873,1744235457684,-544.0,0.0002789,2]
[357606874,1744235457693,-4659.0,0.00027918,2]
[357606875,1744235457703,-558.0,0.00027918,2]
[357606876,1744235457713,-161.96,0.00028192,2]
[357606877,1744235457722,-1000.0,0.00028216,2]
[357606878,1744235457731,-1000.0,0.00028409,2]
[357606879,1744235457741,-500.0,0.00028411,2]
[357606880,1744235457750,-200.0,0.00028514,2]
[357606881,1744235457759,-1000.0,0.00028535,2]
[357606882,1744235457769,-257.91778498,0.00028581,2]
[357606883,1744235457778,-342.06,0.00028909,2]
[357606884,1744235457787,-500.0,0.00029,2]
[357606885,1744235457797,-5023.55781491,0.00029059,2]
[357606886,1744235457807,-1000.0,0.00029412,2]
[357606887,1744235457816,-150.0,0.00029494,2]
[357606888,1744235457826,-150.0,0.0002951,2]
[357606889,1744235457835,-150.0,0.0002951,2]
[357606890,1744235457845,-150.0,0.0002951,2]
[357606891,1744235457854,-150.0,0.00029518,2]
[357606892,1744235457863,-150.0,0.00029524,2]
[357606893,1744235457873,-150.0,0.00029526,2]
[357606894,1744235457882,-150.0,0.00029528,2]
[357606895,1744235457892,-150.0,0.0002954,2]
[357606896,1744235457902,-150.0,0.00029542,2]
[357606897,1744235457912,-150.0,0.00029543,2]
[357606898,1744235457922,-150.0,0.00029548,2]
[357606899,1744235457931,-150.0,0.00029555,2]
[357606900,1744235457942,-150.0,0.00029573,2]
[357606901,1744235457952,-150.0,0.00029574,2]
[357606902,1744235457961,-150.0,0.000296,2]
[357606903,1744235457971,-150.0,0.00029603,2]
[357606904,1744235457980,-150.0,0.00029604,2]
[357606905,1744235457990,-150.0,0.00029606,2]
[357606906,1744235457999,-150.0,0.00029615,2]
[357606907,1744235458009,-150.0,0.00029617,2]
[357606908,1744235458019,-150.0,0.00029619,2]
[357606909,1744235458028,-1000.0,0.00029619,2]
[357606910,1744235458038,-150.0,0.00029625,2]
[357606911,1744235458048,-266.83495689,0.00029626,2]
[357606912,1744235458058,-150.0,0.00029632,2]
[357606913,1744235458068,-150.0,0.0002964,2]
[357606914,1744235458078,-150.0,0.00029643,2]
[357606915,1744235458088,-150.0,0.00029646,2]
[357606916,1744235458098,-150.0,0.00029651,2]
[357606917,1744235458108,-150.0,0.00029662,2]
[357606918,1744235458117,-150.0,0.0002967,2]
[357606919,1744235458127,-150.0,0.00029673,2]
[357606920,1744235458138,-150.0,0.00029679,2]
[357606921,1744235458148,-150.0,0.0002968,2]
[357606922,1744235458158,-150.0,0.00029681,2]
[357606923,1744235458168,-150.0,0.00029704,2]
[357606924,1744235458178,-150.0,0.00029708,2]
[357606925,1744235458189,-150.0,0.00029723,2]
[357606926,1744235458198,-150.0,0.00029724,2]
[357606927,1744235458208,-150.0,0.00029724,2]
[357606928,1744235458219,-150.0,0.00029741,2]
[357606929,1744235458229,-150.0,0.00029745,2]
[357606930,1744235458239,-150.0,0.00029751,2]
[357606931,1744235458248,-150.0,0.00029753,2]
[357606932,1744235458258,-150.0,0.00029753,2]
[357606933,1744235458269,-150.0,0.00029755,2]
[357606934,1744235458279,-150.0,0.00029759,2]
[357606935,1744235458289,-182.66759585,0.00029763,2]
[357606936,1744235458299,-13790.28817188,0.00029763,2]
[357606937,1744235458309,-150.0,0.00029766,2]
[357606938,1744235458318,-150.0,0.00029768,2]
[357606939,1744235458328,-1000.0,0.0002978,2]
[357606940,1744235458338,-150.0,0.00029784,2]
[357606941,1744235458348,-150.0,0.00029793,2]
[357606942,1744235458358,-150.0,0.00029816,2]
[357606943,1744235458368,-150.0,0.00029818,2]
[357606944,1744235458378,-150.0,0.0002982,2]
[357606945,1744235458388,-1286.0,0.00029826,2]
[357606946,1744235458398,-2044.0,0.00029826,2]
[357606947,1744235458408,-574.0,0.00029826,2]
[357606948,1744235458418,-1326.0,0.00029826,2]
[357606949,1744235458431,-1435.0,0.00029826,2]
[357606950,1744235458441,-791.0,0.00029826,2]
[357606951,1744235458451,-606.861,0.00029826,2]
[357606952,1744235458461,-1278.0,0.00029826,2]
[357606953,1744235458473,-4139.0,0.00029826,2]
[357606954,1744235458483,-3958.0,0.00029826,2]
[357606955,1744235458493,-151.0,0.00029826,2]
[357606956,1744235458504,-852.0,0.00029826,2]
[357606957,1744235458515,-868.626,0.00029826,2]
[357606958,1744235458526,-150.0,0.00029826,2]
[357606959,1744235458536,-1000.0,0.00029828,2]
[357606960,1744235458545,-544.24429449,0.00029834,2]
[357606961,1744235458555,-153.892656,0.00029945,7]
[357606962,1744235458566,-151.0,0.00029945,7]
[357606963,1744235458576,-151.0,0.00029945,7]
[357606964,1744235458585,-267.46074303,0.0002995,2]
[357606965,1744235458596,-46051.95161024,0.0003,2]
[357606966,1744235458606,-8421.43524601,0.0003,2]
[357606967,1744235458616,-347.9827629,0.0003,2]
[357606968,1744235458626,-150.0,0.0003,10]
[357606969,1744235458636,-150.0,0.0003,2]
[357606970,1744235458646,-1665.37,0.00030123,2]
[357606971,1744235458656,-342.06,0.00030279,2]
[357606972,1744235458666,-156.56935632,0.00030329,2]
[357606973,1744235458676,-248.1034588,0.00030585,2]
[357606974,1744235458686,-150.0,0.00030891,2]
[357606975,1744235458696,-550.0,0.00031,2]
[357606976,1744235458706,-150.0,0.00031028,2]
[357606977,1744235458716,-150.0,0.00031063,2]
[357606978,1744235458727,-150.0,0.00031091,2]
[357606979,1744235458737,-150.0,0.00031098,2]
[357606980,1744235458747,-150.0,0.00031174,2]
[357606981,1744235458757,-150.0,0.00031175,2]
[357606982,1744235458766,-150.0,0.00031184,2]
[357606983,1744235458776,-150.0,0.00031217,2]
[357606984,1744235458786,-150.0,0.00031221,2]
[357606985,1744235458796,-150.0,0.00031226,2]
[357606986,1744235458806,-150.0,0.00031238,2]
[357606987,1744235458817,-150.0,0.00031243,2]
[357606988,1744235458827,-150.0,0.00031245,2]
[357606989,1744235458837,-150.0,0.00031269,2]
[357606990,1744235458847,-150.0,0.00031275,2]
[357606991,1744235458858,-150.0,0.00031289,2]
[357606992,1744235458867,-150.0,0.00031296,2]
[357606993,1744235458877,-150.0,0.00031309,2]
[357606994,1744235458887,-277.35679052,0.00031319,2]
[357606995,1744235458898,-150.0,0.00031328,2]
[357606996,1744235458908,-150.0,0.00031335,2]
[357606997,1744235458918,-150.0,0.00031335,2]
[357606998,1744235458928,-150.0,0.00031358,2]
[357606999,1744235458938,-150.0,0.00031358,2]
[357607000,1744235458949,-670.81906739,0.00031376,2]
[357607001,1744235458959,-1154.15070237,0.0003138,2]
[357607002,1744235458969,-150.0,0.00031384,2]
[357607003,1744235458980,-150.0,0.00031394,2]
[357607004,1744235458989,-150.0,0.00031414,2]
[357607005,1744235458999,-150.0,0.00031463,2]
[357607006,1744235459009,-150.0,0.00031483,2]
[357607007,1744235459020,-150.0,0.00031513,2]
[357607008,1744235459030,-150.0,0.00031518,2]
[357607009,1744235459040,-150.0,0.00031524,2]
[357607010,1744235459050,-150.0,0.0003153,2]
[357607011,1744235459059,-150.0,0.00031556,2]
[357607012,1744235459070,-150.0,0.0003156,2]
[357607013,1744235459080,-1000.0,0.00031591,2]
[357607014,1744235459091,-159.67136922,0.000316,5]
[357607015,1744235459101,-500.0,0.000316,5]
[357607016,1744235459112,-150.0,0.0003162,2]
[357607017,1744235459122,-342.06,0.00031649,2]
[357607018,1744235459133,-150.0,0.00031661,2]
[357607019,1744235459143,-150.0,0.00031663,2]
[357607020,1744235459153,-150.0,0.00031704,2]
[357607021,1744235459163,-150.0,0.00031704,2]
[357607022,1744235459173,-150.0,0.00031721,2]
[357607023,1744235459184,-150.0,0.00031724,2]
[357607024,1744235459194,-150.0,0.00031728,2]
[357607025,1744235459204,-150.0,0.00031738,2]
[357607026,1744235459214,-150.0,0.00031743,2]
[357607027,1744235459224,-150.0,0.00031745,2]
[357607028,1744235459517,-150.0,0.00031767,2]
[357607029,1744235459527,-150.0,0.00031771,2]
[357607030,1744235459537,-150.0,0.00031777,2]
[357607031,1744235459546,-150.0,0.00031778,2]
[357607032,1744235459555,-150.0,0.0003178,2]
[357607033,1744235459565,-150.0,0.00031787,2]
[357607034,1744235459574,-150.0,0.00031818,2]
[357607035,1744235459583,-150.0,0.00031832,2]
[357607036,1744235459593,-150.0,0.00031836,2]
[357607037,1744235459603,-150.0,0.00031839,2]
[357607038,1744235459613,-150.0,0.00031856,2]
[357607039,1744235459622,-156.28715357,0.00031876,2]
[357607040,1744235459632,-150.0,0.00031884,2]
[357607041,1744235459642,-150.0,0.00031887,2]
[357607042,1744235459651,-150.0,0.00031895,2]
[357607043,1744235459661,-150.0,0.00031917,2]
[357607044,1744235459670,-150.0,0.00031922,2]
[357607045,1744235459680,-150.0,0.00031923,2]
[357607046,1744235459690,-150.0,0.00031942,2]
[357607047,1744235459699,-150.0,0.00031957,2]
[357607048,1744235459709,-150.0,0.00031993,2]
[357607049,1744235459718,-150.0,0.00031997,2]
[357607050,1744235459728,-150.0,0.00032,2]
[357607051,1744235459738,-200.0,0.00032,2]
[357607052,1744235459747,-200.0,0.00032,2]
[357607053,1744235459756,-205.3645,0.000323,120]
[357607054,1744235459766,-151.0,0.0003232,7]
[357607055,1744235459777,-151.0,0.0003232,7]
[357607056,1744235459786,-151.0,0.0003232,7]
[357607057,1744235459797,-151.0,0.0003232,7]
[357607058,1744235459807,-1665.37,0.00032387,2]
[357607059,1744235459818,-626.7,0.00032646,2]
[357607060,1744235459827,-287.61899177,0.00032688,2]
[357607061,1744235459837,-1286.0,0.00032826,2]
[357607062,1744235459846,-2044.0,0.00032826,2]
[357607063,1744235459855,-574.0,0.00032826,2]
[357607064,1744235459865,-1326.0,0.00032826,2]
[357607065,1744235459874,-716.717,0.00032826,2]
[357607066,1744235459884,-1278.0,0.00032826,2]
[357607067,1744235459893,-3958.0,0.00032826,2]
[357607068,1744235459903,-151.0,0.00032826,2]
[357607069,1744235459912,-852.0,0.00032826,2]
[357607070,1744235459921,-266.83495689,0.00032868,2]
[357607071,1744235459931,-500.0,0.00032876,120]
[357607072,1744235459941,-500.0,0.00032876,120]
[357607073,1744235459950,-500.0,0.00032876,120]
[357607074,1744235459959,-500.0,0.00032876,120]
[357607075,1744235459968,-500.0,0.00032876,120]
[357607076,1744235459977,-500.0,0.00032876,120]
[357607077,1744235459987,-500.0,0.00032876,120]
[357607078,1744235459996,-273.59470641,0.00032876,120]
[357607079,1744235460005,-397.9898911,0.00032876,2]
[357607080,1744235460015,-402.93309848,0.00032876,2]
[357607081,1744235460024,-405.13270809,0.00032876,2]
[357607082,1744235460034,-500.0,0.00032876,2]
[357607083,1744235460044,-500.0,0.00032876,2]
[357607084,1744235460053,-500.0,0.00032876,2]
[357607085,1744235460063,-486.73639051,0.00032876,2]
[357607086,1744235460073,-500.0,0.00032876,2]
[357607087,1744235460083,-500.0,0.00032876,2]
[357607088,1744235460092,-500.0,0.00032876,2]
[357607089,1744235460101,-500.0,0.00032876,2]
[357607090,1744235460110,-582.7308538,0.00032876,2]
[357607091,1744235460119,-500.0,0.00032876,2]
[357607092,1744235460129,-1500.0,0.00032877,120]
[357607093,1744235460139,-460.0,0.000329,2]
[357607094,1744235460148,-386.52780346,0.000329,2]
[357607095,1744235460157,-600.0,0.00033,2]
[357607096,1744235460167,-342.06,0.00033018,2]
[357607097,1744235460176,-161.31919907,0.00033837,120]
[357607098,1744235460186,-2313.48751958,0.00033837,120]
[357607099,1744235460195,-167.403207,0.00033863,4]
[357607100,1744235460205,-298.26089446,0.00034057,2]
[357607101,1744235460214,-248.1034588,0.00034147,6]
[357607102,1744235460224,-500.0,0.00034246,2]
[357607103,1744235460235,-500.0,0.00034246,2]
[357607104,1744235460245,-500.0,0.00034246,2]
[357607105,1744235460255,-500.0,0.00034246,2]
[357607106,1744235460264,-500.0,0.00034246,2]
[357607107,1744235460273,-500.0,0.00034246,2]
[357607108,1744235460283,-500.0,0.00034246,2]
[357607109,1744235460292,-500.0,0.00034246,2]
[357607110,1744235460302,-500.0,0.00034246,2]
[357607111,1744235460311,-500.0,0.00034246,2]
[357607112,1744235460320,-500.0,0.00034246,2]
[357607113,1744235460329,-500.0,0.00034246,2]
[357607114,1744235460339,-500.0,0.00034246,2]
[357607115,1744235460348,-500.0,0.00034246,2]
[357607116,1744235460357,-500.0,0.00034246,2]
[357607117,1744235460367,-500.0,0.00034246,2]
[357607118,1744235460376,-151.0,0.00034247,7]
[357607119,1744235460386,-151.0,0.00034247,7]
[357607120,1744235460395,-151.0,0.00034247,7]
[357607121,1744235460405,-151.0,0.00034247,7]
[357607122,1744235460414,-151.0,0.00034247,7]
[357607123,1744235460424,-151.0,0.00034247,7]
[357607124,1744235460437,-151.0,0.00034247,7]
[357607125,1744235460446,-256.86243,0.00034247,7]
[357607126,1744235460456,-151.0,0.00034247,7]
[357607127,1744235460470,-151.0,0.00034247,7]
[357607128,1744235460480,-151.0,0.00034247,7]
[357607129,1744235460489,-151.0,0.00034247,7]
[357607130,1744235460499,-443.216188,0.00034247,7]
[357607131,1744235460509,-443.216188,0.00034247,7]
[357607132,1744235460519,-151.0,0.00034247,7]
[357607133,1744235460528,-872.89554,0.00034247,7]
[357607134,1744235460537,-872.89554,0.00034247,7]
[357607135,1744235460547,-151.0,0.00034247,7]
[357607136,1744235460556,-151.0,0.00034247,7]
[357607137,1744235460565,-151.0,0.00034247,7]
[357607138,1744235460575,-177.806214,0.00034247,7]
[357607139,1744235460585,-289.501958,0.00034247,7]
[357607140,1744235460595,-616.294201,0.00034247,7]
[357607141,1744235460604,-616.294201,0.00034247,7]
[357607142,1744235460613,-163.127945,0.00034247,7]
[357607143,1744235460623,-163.127945,0.00034247,7]
[357607144,1744235460632,-151.0,0.00034247,7]
[357607145,1744235460641,-151.0,0.00034247,7]
[357607146,1744235460651,-151.0,0.00034247,7]
[357607147,1744235460661,-151.0,0.00034247,7]
[357607148,1744235460670,-151.0,0.00034247,7]
[357607149,1744235460679,-151.0,0.00034247,7]
[357607150,1744235460689,-203.198307,0.00034247,7]
[357607151,1744235460698,-151.0,0.00034247,7]
[357607152,1744235460707,-203.198307,0.00034247,7]
[357607153,1744235460716,-415.326059,0.00034247,7]
[357607154,1744235460726,-415.326059,0.00034247,7]
[357607155,1744235460736,-265.360149,0.00034247,7]
[357607156,1744235460745,-265.360149,0.00034247,7]
[357607157,1744235460754,-151.0,0.00034247,7]
[357607158,1744235460763,-151.166207,0.00034247,7]
[357607159,1744235460773,-151.0,0.00034247,7]
[357607160,1744235460782,-322.127338,0.00034247,7]
[357607161,1744235460792,-151.0,0.00034247,7]
[357607162,1744235460801,-322.127338,0.00034247,7]
[357607163,1744235460811,-438.390124,0.00034247,7]
[357607164,1744235460820,-438.390124,0.00034247,7]
[357607165,1744235460830,-151.0,0.00034247,7]
[357607166,1744235460839,-218.707814,0.00034247,7]
[357607167,1744235460848,-154.400418,0.00034247,7]
[357607168,1744235460858,-154.400418,0.00034247,7]
[357607169,1744235460867,-151.0,0.00034247,7]
[357607170,1744235460877,-151.0,0.00034247,7]
[357607171,1744235460886,-151.0,0.00034247,7]
[357607172,1744235460896,-2159.739625,0.00034247,7]
[357607173,1744235460905,-151.0,0.00034247,7]
[357607174,1744235460914,-151.0,0.00034247,7]
[357607175,1744235460923,-2159.739625,0.00034247,7]
[357607176,1744235460933,-254.959028,0.00034247,7]
[357607177,1744235460943,-254.959028,0.00034247,7]
[357607178,1744235460952,-151.0,0.00034247,7]
[357607179,1744235460961,-151.0,0.00034247,7]
[357607180,1744235460970,-151.0,0.00034247,7]
[357607181,1744235460979,-151.0,0.00034247,7]
[357607182,1744235460988,-151.0,0.00034247,7]
[357607183,1744235460997,-317.612319,0.00034247,7]
[357607184,1744235461007,-317.612319,0.00034247,7]
[357607185,1744235461016,-160.084196,0.00034247,7]
[357607186,1744235461025,-2065.11859911,0.00034247,7]
[357607187,1744235461035,-2065.11859911,0.00034247,7]
[357607188,1744235461044,-2065.11859911,0.00034247,7]
[357607189,1744235461054,-2065.11859911,0.00034247,7]
[357607190,1744235461064,-2065.11859911,0.00034247,7]
[357607191,1744235461073,-2065.11859911,0.00034247,7]
[357607192,1744235461083,-2065.11859911,0.00034247,7]
[357607193,1744235461092,-2065.11859911,0.00034247,7]
[357607194,1744235461102,-2065.11859911,0.00034247,7]
[357607195,1744235461111,-2065.11859911,0.00034247,7]
[357607196,1744235461120,-2065.11859911,0.00034247,7]
[357607197,1744235461130,-2065.11859911,0.00034247,7]
[357607198,1744235461140,-2065.11859911,0.00034247,7]
[357607199,1744235461150,-2065.11859911,0.00034247,7]
[357607200,1744235461160,-2065.11859911,0.00034247,7]
[357607201,1744235461169,-2065.11859911,0.00034247,7]
[357607202,1744235461179,-2065.11859911,0.00034247,7]
[357607203,1744235461188,-2065.11859911,0.00034247,7]
[357607204,1744235461197,-2065.11859911,0.00034247,7]